Workbook

Sheet Day21
A1: Player 1 starting position: 4 | F1: =_xlfn.NUMBERVALUE(RIGHT(A1, 1)) -> 4 | G1: 0 | H1: =_xlfn.NUMBERVALUE(RIGHT(A2, 1)) -> 5 | I1: 0 | M1: =MIN(J:K) -> 864900
A2: Player 2 starting position: 5 | C2: 1 | D2: 1 | E2: 1 | F2: =MOD(F1+(E2+1)*3-1, 10)+1 -> 10 | G2: =G1+F2 -> 10 | H2: =MOD(H1+(E2+4)*3-1, 10)+1 -> 10 | I2: =I1+H2 -> 10 | J2: =IF(G2>=1000, I1*(D2+2), "") ->  | K2: =IF(I2>=1000, G2*(D2+5), "") ->  | M2: 575111835924670
C3: 2 | D3: =D2+6 -> 7 | E3: =MOD(D3-1, 100)+1 -> 7 | F3: =MOD(F2+(E3+1)*3-1, 10)+1 -> 4 | G3: =G2+F3 -> 14 | H3: =MOD(H2+(E3+4)*3-1, 10)+1 -> 3 | I3: =I2+H3 -> 13 | J3: =IF(G3>=1000, I2*(D3+2), "") ->  | K3: =IF(I3>=1000, G3*(D3+5), "") -> 
C4: 3 | D4: =D3+6 -> 13 | E4: =MOD(D4-1, 100)+1 -> 13 | F4: =MOD(F3+(E4+1)*3-1, 10)+1 -> 6 | G4: =G3+F4 -> 20 | H4: =MOD(H3+(E4+4)*3-1, 10)+1 -> 4 | I4: =I3+H4 -> 17
C5: 4 | D5: 19 | E5: 19 | F5: 6 | G5: 26 | H5: 3 | I5: 20
C6: 5 | D6: 25 | E6: 25 | F6: 4 | G6: 30 | H6: 10 | I6: 30
C7: 6 | D7: 31 | E7: 31 | F7: 10 | G7: 40 | H7: 5 | I7: 35
C8: 7 | D8: 37 | E8: 37 | F8: 4 | G8: 44 | H8: 8 | I8: 43
C9: 8 | D9: 43 | E9: 43 | F9: 6 | G9: 50 | H9: 9 | I9: 52
C10: 9 | D10: 49 | E10: 49 | F10: 6 | G10: 56 | H10: 8 | I10: 60
C11: 10 | D11: 55 | E11: 55 | F11: 4 | G11: 60 | H11: 5 | I11: 65
C12: 11 | D12: 61 | E12: 61 | F12: 10 | G12: 70 | H12: 10 | I12: 75
C13: 12 | D13: 67 | E13: 67 | F13: 4 | G13: 74 | H13: 3 | I13: 78
C14: 13 | D14: 73 | E14: 73 | F14: 6 | G14: 80 | H14: 4 | I14: 82
C15: 14 | D15: 79 | E15: 79 | F15: 6 | G15: 86 | H15: 3 | I15: 85
C16: 15 | D16: 85 | E16: 85 | F16: 4 | G16: 90 | H16: 10 | I16: 95
C17: 16 | D17: 91 | E17: 91 | F17: 10 | G17: 100 | H17: 5 | I17: 100
C18: 17 | D18: 97 | E18: 97 | F18: 4 | G18: 104 | H18: 8 | I18: 108
C19: 18 | D19: 103 | E19: 3 | F19: 6 | G19: 110 | H19: 9 | I19: 117
C20: 19 | D20: 109 | E20: 9 | F20: 6 | G20: 116 | H20: 8 | I20: 125
C21: 20 | D21: 115 | E21: 15 | F21: 4 | G21: 120 | H21: 5 | I21: 130
C22: 21 | D22: 121 | E22: 21 | F22: 10 | G22: 130 | H22: 10 | I22: 140
C23: 22 | D23: 127 | E23: 27 | F23: 4 | G23: 134 | H23: 3 | I23: 143
C24: 23 | D24: 133 | E24: 33 | F24: 6 | G24: 140 | H24: 4 | I24: 147
C25: 24 | D25: 139 | E25: 39 | F25: 6 | G25: 146 | H25: 3 | I25: 150
C26: 25 | D26: 145 | E26: 45 | F26: 4 | G26: 150 | H26: 10 | I26: 160
C27: 26 | D27: 151 | E27: 51 | F27: 10 | G27: 160 | H27: 5 | I27: 165
C28: 27 | D28: 157 | E28: 57 | F28: 4 | G28: 164 | H28: 8 | I28: 173
C29: 28 | D29: 163 | E29: 63 | F29: 6 | G29: 170 | H29: 9 | I29: 182
C30: 29 | D30: 169 | E30: 69 | F30: 6 | G30: 176 | H30: 8 | I30: 190
C31: 30 | D31: 175 | E31: 75 | F31: 4 | G31: 180 | H31: 5 | I31: 195
C32: 31 | D32: 181 | E32: 81 | F32: 10 | G32: 190 | H32: 10 | I32: 205
C33: 32 | D33: 187 | E33: 87 | F33: 4 | G33: 194 | H33: 3 | I33: 208
C34: 33 | D34: 193 | E34: 93 | F34: 6 | G34: 200 | H34: 4 | I34: 212
C35: 34 | D35: 199 | E35: 99 | F35: 6 | G35: 206 | H35: 3 | I35: 215
C36: 35 | D36: 205 | E36: 5 | F36: 4 | G36: 210 | H36: 10 | I36: 225
C37: 36 | D37: 211 | E37: 11 | F37: 10 | G37: 220 | H37: 5 | I37: 230
C38: 37 | D38: 217 | E38: 17 | F38: 4 | G38: 224 | H38: 8 | I38: 238
C39: 38 | D39: 223 | E39: 23 | F39: 6 | G39: 230 | H39: 9 | I39: 247
C40: 39 | D40: 229 | E40: 29 | F40: 6 | G40: 236 | H40: 8 | I40: 255
C41: 40 | D41: 235 | E41: 35 | F41: 4 | G41: 240 | H41: 5 | I41: 260
C42: 41 | D42: 241 | E42: 41 | F42: 10 | G42: 250 | H42: 10 | I42: 270
C43: 42 | D43: 247 | E43: 47 | F43: 4 | G43: 254 | H43: 3 | I43: 273
C44: 43 | D44: 253 | E44: 53 | F44: 6 | G44: 260 | H44: 4 | I44: 277
C45: 44 | D45: 259 | E45: 59 | F45: 6 | G45: 266 | H45: 3 | I45: 280
C46: 45 | D46: 265 | E46: 65 | F46: 4 | G46: 270 | H46: 10 | I46: 290
C47: 46 | D47: 271 | E47: 71 | F47: 10 | G47: 280 | H47: 5 | I47: 295
C48: 47 | D48: 277 | E48: 77 | F48: 4 | G48: 284 | H48: 8 | I48: 303
C49: 48 | D49: 283 | E49: 83 | F49: 6 | G49: 290 | H49: 9 | I49: 312
C50: 49 | D50: 289 | E50: 89 | F50: 6 | G50: 296 | H50: 8 | I50: 320
C51: 50 | D51: 295 | E51: 95 | F51: 4 | G51: 300 | H51: 5 | I51: 325
C52: 51 | D52: 301 | E52: 1 | F52: 10 | G52: 310 | H52: 10 | I52: 335
C53: 52 | D53: 307 | E53: 7 | F53: 4 | G53: 314 | H53: 3 | I53: 338
C54: 53 | D54: 313 | E54: 13 | F54: 6 | G54: 320 | H54: 4 | I54: 342
C55: 54 | D55: 319 | E55: 19 | F55: 6 | G55: 326 | H55: 3 | I55: 345
C56: 55 | D56: 325 | E56: 25 | F56: 4 | G56: 330 | H56: 10 | I56: 355
C57: 56 | D57: 331 | E57: 31 | F57: 10 | G57: 340 | H57: 5 | I57: 360
C58: 57 | D58: 337 | E58: 37 | F58: 4 | G58: 344 | H58: 8 | I58: 368
C59: 58 | D59: 343 | E59: 43 | F59: 6 | G59: 350 | H59: 9 | I59: 377
C60: 59 | D60: 349 | E60: 49 | F60: 6 | G60: 356 | H60: 8 | I60: 385
C61: 60 | D61: 355 | E61: 55 | F61: 4 | G61: 360 | H61: 5 | I61: 390
C62: 61 | D62: 361 | E62: 61 | F62: 10 | G62: 370 | H62: 10 | I62: 400
C63: 62 | D63: 367 | E63: 67 | F63: 4 | G63: 374 | H63: 3 | I63: 403
C64: 63 | D64: 373 | E64: 73 | F64: 6 | G64: 380 | H64: 4 | I64: 407
C65: 64 | D65: 379 | E65: 79 | F65: 6 | G65: 386 | H65: 3 | I65: 410
C66: 65 | D66: 385 | E66: 85 | F66: 4 | G66: 390 | H66: 10 | I66: 420
C67: 66 | D67: 391 | E67: 91 | F67: 10 | G67: 400 | H67: 5 | I67: 425 | J67: =IF(G67>=1000, I66*(D67+2), "") ->  | K67: =IF(I67>=1000, G67*(D67+5), "") -> 
C68: 67 | D68: =D67+6 -> 397 | E68: =MOD(D68-1, 100)+1 -> 97 | F68: =MOD(F67+(E68+1)*3-1, 10)+1 -> 4 | G68: =G67+F68 -> 404 | H68: =MOD(H67+(E68+4)*3-1, 10)+1 -> 8 | I68: =I67+H68 -> 433
C69: 68 | D69: 403 | E69: 3 | F69: 6 | G69: 410 | H69: 9 | I69: 442
C70: 69 | D70: 409 | E70: 9 | F70: 6 | G70: 416 | H70: 8 | I70: 450
C71: 70 | D71: 415 | E71: 15 | F71: 4 | G71: 420 | H71: 5 | I71: 455
C72: 71 | D72: 421 | E72: 21 | F72: 10 | G72: 430 | H72: 10 | I72: 465
C73: 72 | D73: 427 | E73: 27 | F73: 4 | G73: 434 | H73: 3 | I73: 468
C74: 73 | D74: 433 | E74: 33 | F74: 6 | G74: 440 | H74: 4 | I74: 472
C75: 74 | D75: 439 | E75: 39 | F75: 6 | G75: 446 | H75: 3 | I75: 475
C76: 75 | D76: 445 | E76: 45 | F76: 4 | G76: 450 | H76: 10 | I76: 485
C77: 76 | D77: 451 | E77: 51 | F77: 10 | G77: 460 | H77: 5 | I77: 490
C78: 77 | D78: 457 | E78: 57 | F78: 4 | G78: 464 | H78: 8 | I78: 498
C79: 78 | D79: 463 | E79: 63 | F79: 6 | G79: 470 | H79: 9 | I79: 507
C80: 79 | D80: 469 | E80: 69 | F80: 6 | G80: 476 | H80: 8 | I80: 515
C81: 80 | D81: 475 | E81: 75 | F81: 4 | G81: 480 | H81: 5 | I81: 520
C82: 81 | D82: 481 | E82: 81 | F82: 10 | G82: 490 | H82: 10 | I82: 530
C83: 82 | D83: 487 | E83: 87 | F83: 4 | G83: 494 | H83: 3 | I83: 533
C84: 83 | D84: 493 | E84: 93 | F84: 6 | G84: 500 | H84: 4 | I84: 537
C85: 84 | D85: 499 | E85: 99 | F85: 6 | G85: 506 | H85: 3 | I85: 540
C86: 85 | D86: 505 | E86: 5 | F86: 4 | G86: 510 | H86: 10 | I86: 550
C87: 86 | D87: 511 | E87: 11 | F87: 10 | G87: 520 | H87: 5 | I87: 555
C88: 87 | D88: 517 | E88: 17 | F88: 4 | G88: 524 | H88: 8 | I88: 563
C89: 88 | D89: 523 | E89: 23 | F89: 6 | G89: 530 | H89: 9 | I89: 572
C90: 89 | D90: 529 | E90: 29 | F90: 6 | G90: 536 | H90: 8 | I90: 580
C91: 90 | D91: 535 | E91: 35 | F91: 4 | G91: 540 | H91: 5 | I91: 585
C92: 91 | D92: 541 | E92: 41 | F92: 10 | G92: 550 | H92: 10 | I92: 595
C93: 92 | D93: 547 | E93: 47 | F93: 4 | G93: 554 | H93: 3 | I93: 598
C94: 93 | D94: 553 | E94: 53 | F94: 6 | G94: 560 | H94: 4 | I94: 602
C95: 94 | D95: 559 | E95: 59 | F95: 6 | G95: 566 | H95: 3 | I95: 605
C96: 95 | D96: 565 | E96: 65 | F96: 4 | G96: 570 | H96: 10 | I96: 615
C97: 96 | D97: 571 | E97: 71 | F97: 10 | G97: 580 | H97: 5 | I97: 620
C98: 97 | D98: 577 | E98: 77 | F98: 4 | G98: 584 | H98: 8 | I98: 628
C99: 98 | D99: 583 | E99: 83 | F99: 6 | G99: 590 | H99: 9 | I99: 637
C100: 99 | D100: 589 | E100: 89 | F100: 6 | G100: 596 | H100: 8 | I100: 645
C101: 100 | D101: 595 | E101: 95 | F101: 4 | G101: 600 | H101: 5 | I101: 650
C102: 101 | D102: 601 | E102: 1 | F102: =MOD(F101+(E102+1)*3-1, 10)+1 -> 10 | G102: =G101+F102 -> 610 | H102: =MOD(H101+(E102+4)*3-1, 10)+1 -> 10 | I102: =I101+H102 -> 660
C103: 102 | D103: 607 | E103: 7 | F103: 4 | G103: 614 | H103: 3 | I103: 663
C104: 103 | D104: 613 | E104: 13 | F104: 6 | G104: 620 | H104: 4 | I104: 667
C105: 104 | D105: 619 | E105: 19 | F105: 6 | G105: 626 | H105: 3 | I105: 670
C106: 105 | D106: 625 | E106: 25 | F106: 4 | G106: 630 | H106: 10 | I106: 680
C107: 106 | D107: 631 | E107: 31 | F107: 10 | G107: 640 | H107: 5 | I107: 685
C108: 107 | D108: 637 | E108: 37 | F108: 4 | G108: 644 | H108: 8 | I108: 693
C109: 108 | D109: 643 | E109: 43 | F109: 6 | G109: 650 | H109: 9 | I109: 702
C110: 109 | D110: 649 | E110: 49 | F110: 6 | G110: 656 | H110: 8 | I110: 710
C111: 110 | D111: 655 | E111: 55 | F111: 4 | G111: 660 | H111: 5 | I111: 715
C112: 111 | D112: 661 | E112: 61 | F112: 10 | G112: 670 | H112: 10 | I112: 725
C113: 112 | D113: 667 | E113: 67 | F113: 4 | G113: 674 | H113: 3 | I113: 728
C114: 113 | D114: 673 | E114: 73 | F114: 6 | G114: 680 | H114: 4 | I114: 732
C115: 114 | D115: 679 | E115: 79 | F115: 6 | G115: 686 | H115: 3 | I115: 735
C116: 115 | D116: 685 | E116: 85 | F116: 4 | G116: 690 | H116: 10 | I116: 745
C117: 116 | D117: 691 | E117: 91 | F117: 10 | G117: 700 | H117: 5 | I117: 750
C118: 117 | D118: 697 | E118: 97 | F118: 4 | G118: 704 | H118: 8 | I118: 758
C119: 118 | D119: 703 | E119: 3 | F119: 6 | G119: 710 | H119: 9 | I119: 767
C120: 119 | D120: 709 | E120: 9 | F120: 6 | G120: 716 | H120: 8 | I120: 775
C121: 120 | D121: 715 | E121: 15 | F121: 4 | G121: 720 | H121: 5 | I121: 780
C122: 121 | D122: 721 | E122: 21 | F122: 10 | G122: 730 | H122: 10 | I122: 790
C123: 122 | D123: 727 | E123: 27 | F123: 4 | G123: 734 | H123: 3 | I123: 793
C124: 123 | D124: 733 | E124: 33 | F124: 6 | G124: 740 | H124: 4 | I124: 797
C125: 124 | D125: 739 | E125: 39 | F125: 6 | G125: 746 | H125: 3 | I125: 800
C126: 125 | D126: 745 | E126: 45 | F126: 4 | G126: 750 | H126: 10 | I126: 810
C127: 126 | D127: 751 | E127: 51 | F127: 10 | G127: 760 | H127: 5 | I127: 815
C128: 127 | D128: 757 | E128: 57 | F128: 4 | G128: 764 | H128: 8 | I128: 823
C129: 128 | D129: 763 | E129: 63 | F129: 6 | G129: 770 | H129: 9 | I129: 832
C130: 129 | D130: 769 | E130: 69 | F130: 6 | G130: 776 | H130: 8 | I130: 840
C131: 130 | D131: 775 | E131: 75 | F131: 4 | G131: 780 | H131: 5 | I131: 845 | J131: =IF(G131>=1000, I130*(D131+2), "") ->  | K131: =IF(I131>=1000, G131*(D131+5), "") -> 
C132: 131 | D132: =D131+6 -> 781 | E132: =MOD(D132-1, 100)+1 -> 81 | F132: 10 | G132: 790 | H132: 10 | I132: 855
C133: 132 | D133: 787 | E133: 87 | F133: 4 | G133: 794 | H133: 3 | I133: 858
C134: 133 | D134: 793 | E134: 93 | F134: 6 | G134: 800 | H134: 4 | I134: 862
C135: 134 | D135: 799 | E135: 99 | F135: 6 | G135: 806 | H135: 3 | I135: 865
C136: 135 | D136: 805 | E136: 5 | F136: 4 | G136: 810 | H136: 10 | I136: 875
C137: 136 | D137: 811 | E137: 11 | F137: =MOD(F136+(E137+1)*3-1, 10)+1 -> 10 | G137: =G136+F137 -> 820 | H137: =MOD(H136+(E137+4)*3-1, 10)+1 -> 5 | I137: =I136+H137 -> 880
C138: 137 | D138: 817 | E138: 17 | F138: 4 | G138: 824 | H138: 8 | I138: 888
C139: 138 | D139: 823 | E139: 23 | F139: 6 | G139: 830 | H139: 9 | I139: 897
C140: 139 | D140: 829 | E140: 29 | F140: 6 | G140: 836 | H140: 8 | I140: 905
C141: 140 | D141: 835 | E141: 35 | F141: 4 | G141: 840 | H141: 5 | I141: 910
C142: 141 | D142: 841 | E142: 41 | F142: 10 | G142: 850 | H142: 10 | I142: 920
C143: 142 | D143: 847 | E143: 47 | F143: 4 | G143: 854 | H143: 3 | I143: 923
C144: 143 | D144: 853 | E144: 53 | F144: 6 | G144: 860 | H144: 4 | I144: 927
C145: 144 | D145: 859 | E145: 59 | F145: 6 | G145: 866 | H145: 3 | I145: 930
C146: 145 | D146: 865 | E146: 65 | F146: 4 | G146: 870 | H146: 10 | I146: 940
C147: 146 | D147: 871 | E147: 71 | F147: 10 | G147: 880 | H147: 5 | I147: 945
C148: 147 | D148: 877 | E148: 77 | F148: 4 | G148: 884 | H148: 8 | I148: 953
C149: 148 | D149: 883 | E149: 83 | F149: 6 | G149: 890 | H149: 9 | I149: 962
C150: 149 | D150: 889 | E150: 89 | F150: 6 | G150: 896 | H150: 8 | I150: 970
C151: 150 | D151: 895 | E151: 95 | F151: 4 | G151: 900 | H151: 5 | I151: 975
C152: 151 | D152: 901 | E152: 1 | F152: 10 | G152: 910 | H152: 10 | I152: 985
C153: 152 | D153: 907 | E153: 7 | F153: 4 | G153: 914 | H153: 3 | I153: 988
C154: 153 | D154: 913 | E154: 13 | F154: 6 | G154: 920 | H154: 4 | I154: 992
C155: 154 | D155: 919 | E155: 19 | F155: 6 | G155: 926 | H155: 3 | I155: 995
C156: 155 | D156: 925 | E156: 25 | F156: 4 | G156: 930 | H156: 10 | I156: 1005 | K156: 864900
C157: 156 | D157: 931 | E157: 31 | F157: 10 | G157: 940 | H157: 5 | I157: 1010 | K157: 879840
C158: 157 | D158: 937 | E158: 37 | F158: 4 | G158: 944 | H158: 8 | I158: 1018 | K158: 889248
C159: 158 | D159: 943 | E159: 43 | F159: 6 | G159: 950 | H159: 9 | I159: 1027 | K159: 900600
C160: 159 | D160: 949 | E160: 49 | F160: 6 | G160: 956 | H160: 8 | I160: 1035 | K160: 912024
C161: 160 | D161: 955 | E161: 55 | F161: 4 | G161: 960 | H161: 5 | I161: 1040 | K161: 921600
C162: 161 | D162: 961 | E162: 61 | F162: 10 | G162: 970 | H162: 10 | I162: 1050 | K162: 937020
C163: 162 | D163: 967 | E163: 67 | F163: 4 | G163: 974 | H163: 3 | I163: 1053 | K163: 946728
C164: 163 | D164: 973 | E164: 73 | F164: 6 | G164: 980 | H164: 4 | I164: 1057 | K164: 958440
C165: 164 | D165: 979 | E165: 79 | F165: 6 | G165: 986 | H165: 3 | I165: 1060 | K165: 970224
C166: 165 | D166: 985 | E166: 85 | F166: 4 | G166: 990 | H166: 10 | I166: 1070 | K166: 980100
C167: 166 | D167: 991 | E167: 91 | F167: 10 | G167: 1000 | H167: 5 | I167: 1075 | J167: 1062510 | K167: 996000
C168: 167 | D168: 997 | E168: 97 | F168: 4 | G168: 1004 | H168: 8 | I168: 1083 | J168: 1073925 | K168: 1006008
C169: 168 | D169: 1003 | E169: 3 | F169: 6 | G169: 1010 | H169: 9 | I169: 1092 | J169: 1088415 | K169: 1018080
C170: 169 | D170: 1009 | E170: 9 | F170: 6 | G170: 1016 | H170: 8 | I170: 1100 | J170: 1104012 | K170: 1030224
C171: 170 | D171: 1015 | E171: 15 | F171: 4 | G171: 1020 | H171: 5 | I171: 1105 | J171: 1118700 | K171: 1040400
C172: 171 | D172: 1021 | E172: 21 | F172: 10 | G172: 1030 | H172: 10 | I172: 1115 | J172: 1130415 | K172: 1056780
C173: 172 | D173: 1027 | E173: 27 | F173: 4 | G173: 1034 | H173: 3 | I173: 1118 | J173: 1147335 | K173: 1067088
C174: 173 | D174: 1033 | E174: 33 | F174: 6 | G174: 1040 | H174: 4 | I174: 1122 | J174: 1157130 | K174: 1079520
C175: 174 | D175: 1039 | E175: 39 | F175: 6 | G175: 1046 | H175: 3 | I175: 1125 | J175: 1168002 | K175: 1092024
C176: 175 | D176: 1045 | E176: 45 | F176: 4 | G176: 1050 | H176: 10 | I176: 1135 | J176: 1177875 | K176: 1102500
C177: 176 | D177: 1051 | E177: 51 | F177: 10 | G177: 1060 | H177: 5 | I177: 1140 | J177: 1195155 | K177: 1119360
C178: 177 | D178: 1057 | E178: 57 | F178: 4 | G178: 1064 | H178: 8 | I178: 1148 | J178: 1207260 | K178: 1129968
C179: 178 | D179: 1063 | E179: 63 | F179: 6 | G179: 1070 | H179: 9 | I179: 1157 | J179: 1222620 | K179: 1142760
C180: 179 | D180: 1069 | E180: 69 | F180: 6 | G180: 1076 | H180: 8 | I180: 1165 | J180: 1239147 | K180: 1155624
C181: 180 | D181: 1075 | E181: 75 | F181: 4 | G181: 1080 | H181: 5 | I181: 1170 | J181: 1254705 | K181: 1166400
C182: 181 | D182: 1081 | E182: 81 | F182: 10 | G182: 1090 | H182: 10 | I182: 1180 | J182: 1267110 | K182: 1183740
C183: 182 | D183: 1087 | E183: 87 | F183: 4 | G183: 1094 | H183: 3 | I183: 1183 | J183: 1285020 | K183: 1194648
C184: 183 | D184: 1093 | E184: 93 | F184: 6 | G184: 1100 | H184: 4 | I184: 1187 | J184: 1295385 | K184: 1207800
C185: 184 | D185: 1099 | E185: 99 | F185: 6 | G185: 1106 | H185: 3 | I185: 1190 | J185: 1306887 | K185: 1221024
C186: 185 | D186: 1105 | E186: 5 | F186: 4 | G186: 1110 | H186: 10 | I186: 1200 | J186: 1317330 | K186: 1232100
C187: 186 | D187: 1111 | E187: 11 | F187: 10 | G187: 1120 | H187: 5 | I187: 1205 | J187: 1335600 | K187: 1249920
C188: 187 | D188: 1117 | E188: 17 | F188: 4 | G188: 1124 | H188: 8 | I188: 1213 | J188: 1348395 | K188: 1261128
C189: 188 | D189: 1123 | E189: 23 | F189: 6 | G189: 1130 | H189: 9 | I189: 1222 | J189: 1364625 | K189: 1274640
C190: 189 | D190: 1129 | E190: 29 | F190: 6 | G190: 1136 | H190: 8 | I190: 1230 | J190: 1382082 | K190: 1288224
C191: 190 | D191: 1135 | E191: 35 | F191: 4 | G191: 1140 | H191: 5 | I191: 1235 | J191: 1398510 | K191: 1299600
C192: 191 | D192: 1141 | E192: 41 | F192: 10 | G192: 1150 | H192: 10 | I192: 1245 | J192: 1411605 | K192: 1317900
C193: 192 | D193: 1147 | E193: 47 | F193: 4 | G193: 1154 | H193: 3 | I193: 1248 | J193: 1430505 | K193: 1329408
C194: 193 | D194: 1153 | E194: 53 | F194: 6 | G194: 1160 | H194: 4 | I194: 1252 | J194: 1441440 | K194: 1343280
C195: 194 | D195: 1159 | E195: 59 | F195: 6 | G195: 1166 | H195: 3 | I195: 1255 | J195: =IF(G195>=1000, I194*(D195+2), "") -> 1453572 | K195: =IF(I195>=1000, G195*(D195+5), "") -> 1357224
C196: 195 | D196: =D195+6 -> 1165 | E196: =MOD(D196-1, 100)+1 -> 65 | F196: 4 | G196: 1170 | H196: 10 | I196: 1265 | J196: 1464585 | K196: 1368900
C197: 196 | D197: 1171 | E197: 71 | F197: 10 | G197: 1180 | H197: 5 | I197: 1270 | J197: 1483845 | K197: 1387680
C198: 197 | D198: 1177 | E198: 77 | F198: 4 | G198: 1184 | H198: 8 | I198: 1278 | J198: 1497330 | K198: 1399488
C199: 198 | D199: 1183 | E199: 83 | F199: 6 | G199: 1190 | H199: 9 | I199: 1287 | J199: 1514430 | K199: 1413720
C200: 199 | D200: 1189 | E200: 89 | F200: 6 | G200: 1196 | H200: 8 | I200: 1295 | J200: 1532817 | K200: 1428024
... 1 more rows
